[Event "Fagernes Chess GM-Swiss 2024"]
[Site "Fagernes"]
[Date "2024.03.28"]
[Round "6.48"]
[White "Rynning, Rune Kleiven"]
[Black "Makka, Ioulia"]
[Result "0-1"]
[ECO "B06"]
[WhiteElo "1813"]
[BlackElo "1983"]
[Annotator "NA RC"]
[PlyCount "108"]
[EventDate "2024.03.25"]
[EventType "swiss"]
[EventCountry "NOR"]
[SourceTitle "playchess.com"]
[Source "ChessBase"]
[SourceQuality "1"]
[TimeControl "40/6000+30:2400+30"]

1. e4 {[%emt 0:00:03]} g6 {[%emt 0:02:04]} 2. d4 {[%emt 0:00:07]} Bg7 {[%emt 0:00:31]} 3. Nc3 {[%emt 0:00:14]} d6 {[%emt 0:01:08]} 4. Be3 {[%emt 0:00:11]} Nd7 {[%emt 0:00:42]} 5. Qd2 {[%emt 0:01:20]} a6 {[%emt 0:08:26]} 6. h4 {[%emt 0:04:05]} h5 {[%emt 0:09:27]} 7. Nh3 {[%emt 0:01:16]} c5 {[%emt 0:02:11]} 8. Ng5 {[%emt 0:04:52]} b5 $2 {[%emt 0:10:51]} (8... cxd4 $14 9. Bxd4 Bxd4 10. Qxd4 Ngf6) 9. O-O-O {[%emt 0:24:27]} c4 {[%emt 0:07:29]} 10. e5 {[%emt 0:09:51]} Nb6 {[%emt 0:10:21]} 11. e6 {[%emt 0:09:19]} fxe6 {[%emt 0:02:41]} 12. d5 {[%emt 0:00:32]} e5 {[%emt 0:02:06]} 13. f4 {[%emt 0:10:28]} exf4 $15 {[%emt 0:02:35]} 14. Bxf4 {[%emt 0:03:37]} Nh6 {[%emt 0:02:27]} 15. Re1 {[%emt 0:05:10]} Nf5 {[%emt 0:02:47]} 16. Ne6 {[%emt 0:02:32]} Bxe6 {[%emt 0:00:36]} 17. Rxe6 {[%emt 0:00:10]} Kf7 {[%emt 0:10:19]} 18. Ne4 {[%emt 0:02:59]} Bf6 {[%emt 0:02:54]} 19. Ng5+ {[%emt 0:09:05]} Kg8 {[%emt 0:04:19]} 20. g3 {[%emt 0:03:55]} Na4 {[%emt 0:02:34]} 21. c3 {[%emt 0:02:51]} Nc5 {[%emt 0:01:08]} 22. Re1 {[%emt 0:01:12]} Rb8 {[%emt 0:04:25]} 23. Ne6 {[%emt 0:02:42]} Nxe6 {[%emt 0:01:18]} 24. Rxe6 {[%emt 0:00:07]} Ng7 {[%emt 0:05:19]} 25. Re1 {[%emt 0:01:16]} a5 {[%emt 0:00:37]} 26. Bg5 {[%emt 0:01:10]} Kh7 {[%emt 0:03:04]} 27. Bh3 {[%emt 0:03:58]} Rf8 {[%emt 0:03:17]} 28. Bxf6 {[%emt 0:00:39]} exf6 {[%emt 0:02:22]} 29. g4 {[%emt 0:00:02]} Re8 {[%emt 0:01:10]} 30. gxh5 {[%emt 0:00:14]} Nxh5 {[%emt 0:00:09]} 31. Be6 {[%emt 0:02:47]} Rb7 {[%emt 0:02:17]} 32. Reg1 {[%emt 0:00:55]} Rg7 {[%emt 0:00:52]} 33. Rg2 {[%emt 0:00:24]} Qb6 {[%emt 0:00:56]} 34. Rhg1 {[%emt 0:00:36]} Ree7 {[%emt 0:01:35]} 35. Rg4 {[%emt 0:03:16]} f5 {[%emt 0:01:08]} 36. Rg5 {[%emt 0:00:58]} f4 {[%emt 0:00:55]} 37. R1g4 {[%emt 0:01:03]} Qe3 {[%emt 0:01:04]} 38. Qxe3 {[%emt 0:00:30]} fxe3 {[%emt 0:00:01]} 39. Kd1 {[%emt 0:00:30]} Nf6 {[%emt 0:00:24]} 40. Rg2 {[%emt 0:00:31]} Ne4 {[%emt 0:01:15]} 41. Rxg6 {[%emt 0:08:34]} e2+ {[%emt 0:05:03]} 42. Ke1 {[%emt 0:02:41]} Rxg6 {[%emt 0:01:07]} 43. Bf5 {[%emt 0:00:43]} Nc5 {[%emt 0:02:09]} 44. h5 {[%emt 0:18:12]} Nd3+ {[%emt 0:00:49]} 45. Bxd3 {[%emt 0:00:19]} cxd3 {[%emt 0:00:08]} 46. hxg6+ {[%emt 0:00:08]} Kg7 {[%emt 0:00:32]} 47. Rg1 {[%emt 0:00:20]} Re3 {[%emt 0:05:54]} 48. Kd2 {[%emt 0:02:55]} Rf3 {[%emt 0:00:37]} 49. Re1 {[%emt 0:00:12]} Kxg6 {[%emt 0:00:53]} 50. b4 {[%emt 0:05:21]} axb4 {[%emt 0:02:34]} 51. cxb4 {[%emt 0:00:14]} Rf1 {[%emt 0:01:02]} 52. a4 {[%emt 0:01:54]} bxa4 {[%emt 0:00:22]} 53. b5 {[%emt 0:00:11]} Rxe1 {[%emt 0:00:22]} 54. Kxe1 {[%emt 0:00:11]} a3 {[%emt 0:00:09]} 0-1

[Event "Fagernes Chess GM-Swiss 2024"]
[Site "Fagernes"]
[Date "2024.03.28"]
[Round "6.49"]
[White "Juodziukynas, Aidas"]
[Black "Valcu, Lavinia"]
[Result "0-1"]
[ECO "B14"]
[WhiteElo "1893"]
[BlackElo "2070"]
[Annotator "NA RC"]
[PlyCount "112"]
[EventDate "2024.03.25"]
[EventType "swiss"]
[EventCountry "NOR"]
[SourceTitle "playchess.com"]
[Source "ChessBase"]
[SourceQuality "1"]
[TimeControl "40/6000+30:2400+30"]

1. d4 {[%emt 0:00:23]} g6 {[%emt 0:00:05]} 2. c4 {[%emt 0:00:15]} Bg7 {[%emt 0:00:05]} 3. Nf3 {[%emt 0:01:59]} d6 {[%emt 0:00:14]} 4. Nc3 {[%emt 0:00:15]} c5 {[%emt 0:00:32]} 5. e3 {[%emt 0:04:16]} cxd4 {[%emt 0:00:48]} 6. exd4 {[%emt 0:00:06]} Nf6 {[%emt 0:00:17]} 7. Be2 {[%emt 0:01:06]} O-O {[%emt 0:00:33]} 8. O-O {[%emt 0:00:11]} d5 {[%emt 0:05:10]} 9. Bg5 {[%emt 0:02:26]} dxc4 {[%emt 0:06:22]} 10. Bxc4 {[%emt 0:00:27]} Nbd7 {[%emt 0:02:01] B14: Caro-Kann: Panov-Botvinnik Attack with 5...e6 and 5...g6.} 11. Re1 {[%emt 0:04:35]} Nb6 {[%emt 0:10:29]} 12. Bb3 {[%emt 0:00:17]} h6 {[%emt 0:02:00]} 13. Bh4 {[%emt 0:01:31]} g5 {[%emt 0:06:48]} 14. Bg3 {[%emt 0:00:25]} Bg4 {[%emt 0:00:35]} 15. Qd3 {[%emt 0:01:03]} e6 {[%emt 0:03:35]} 16. Ne5 {[%emt 0:02:40]} Bf5 {[%emt 0:03:22]} 17. Qf3 {[%emt 0:02:37]} Nbd5 {[%emt 0:00:35]} 18. Nxd5 {[%emt 0:04:08]} Nxd5 {[%emt 0:00:08]} 19. h3 {[%emt 0:03:48]} a5 {[%emt 0:06:24]} 20. Rac1 {[%emt 0:08:24]} Nb4 {[%emt 0:03:42]} 21. Red1 {[%emt 0:02:03]} a4 {[%emt 0:05:26]} 22. Bc4 {[%emt 0:01:47]} Nd5 {[%emt 0:05:39]} 23. a3 {[%emt 0:13:45]} Ra5 $14 {[%emt 0:01:43]} (23... Rc8 $11) 24. b4 {[%emt 0:06:57]} axb3 {[%emt 0:00:15]} 25. Qxb3 {[%emt 0:00:49]} Qa8 {[%emt 0:07:22]} 26. Ra1 {[%emt 0:05:31]} Qa7 {[%emt 0:03:33]} 27. a4 {[%emt 0:07:36]} Ra8 {[%emt 0:02:30]} 28. Bb5 {[%emt 0:03:54]} Nb6 {[%emt 0:00:44]} 29. Rd2 {[%emt 0:05:08]} Be4 {[%emt 0:03:28]} 30. Rb2 {[%emt 0:05:13]} Bd5 {[%emt 0:02:55]} 31. Qd1 {[%emt 0:03:10]} Nxa4 {[%emt 0:08:29]} 32. Qh5 {[%emt 0:08:17]} Rf8 {[%emt 0:00:45]} 33. Be8 {[%emt 0:07:17]} Nxb2 {[%emt 0:02:53]} 34. Bxf7+ {[%emt 0:00:39]} Kh7 {[%emt 0:01:50]} 35. Qg6+ {[%emt 0:01:28]} Kh8 {[%emt 0:00:02]} 36. Rxa5 {[%emt 0:01:33]} Qxa5 {[%emt 0:00:13]} 37. Nd7 {[%emt 0:01:16]} Qe1+ {[%emt 0:06:30]} 38. Kh2 {[%emt 0:00:14]} Qe4 {[%emt 0:05:03]} 39. Qxe4 {[%emt 0:00:06]} Bxe4 {[%emt 0:00:05]} 40. Nxf8 {[%emt 0:00:27]} Bxf8 {[%emt 0:00:10]} 41. Bxe6 {[%emt 0:40:22]} b5 {[%emt 0:41:40]} 42. f3 {[%emt 0:01:35]} Bg6 {[%emt 0:01:25]} 43. Kg1 {[%emt 0:00:00]} Nc4 {[%emt 0:00:00]} 44. Kf1 {[%emt 0:00:00]} Bd3+ {[%emt 0:00:00]} 45. Ke1 {[%emt 0:00:00]} b4 {[%emt 0:00:00]} 46. Kd1 {[%emt 0:00:00]} b3 {[%emt 0:00:00]} 47. Be5+ {[%emt 0:00:00]} Nxe5 {[%emt 0:00:00]} 48. Bxb3 {[%emt 0:00:00]} Nc4 {[%emt 0:00:00]} 49. Ke1 {[%emt 0:00:00]} Bg7 {[%emt 0:00:00]} 50. Kf2 {[%emt 0:00:00]} Bxd4+ {[%emt 0:00:00]} 51. Kg3 {[%emt 0:00:00]} Kg7 {[%emt 0:00:00]} 52. h4 {[%emt 0:00:00]} Be5+ {[%emt 0:00:00]} 53. Kh3 {[%emt 0:00:00]} Bf5+ {[%emt 0:00:00]} 54. g4 {[%emt 0:00:00]} Bd3 {[%emt 0:00:00]} 55. hxg5 {[%emt 0:00:00]} hxg5 {[%emt 0:00:00]} 56. Kg2 {[%emt 0:00:00]} Kf6 {[%emt 0:00:00]} 0-1

[Event "Fagernes Chess GM-Swiss 2024"]
[Site "Fagernes"]
[Date "2024.03.28"]
[Round "6.50"]
[White "Bech, Havard Eriksen"]
[Black "Sachi Jain"]
[Result "0-1"]
[ECO "D37"]
[WhiteElo "1951"]
[BlackElo "1992"]
[Annotator "NA RC"]
[PlyCount "132"]
[EventDate "2024.03.25"]
[EventType "swiss"]
[EventCountry "NOR"]
[SourceTitle "playchess.com"]
[Source "ChessBase"]
[SourceQuality "1"]
[TimeControl "40/6000+30:2400+30"]

1. d4 {[%emt 0:00:02]} d5 {[%emt 0:01:11]} 2. c4 {[%emt 0:00:12]} e6 {[%emt 0:00:08]} 3. Nf3 {[%emt 0:00:06]} Nf6 {[%emt 0:00:06]} 4. Nc3 {[%emt 0:00:05]} Be7 {[%emt 0:00:04]} 5. Bf4 {[%emt 0:00:07]} O-O {[%emt 0:00:09]} 6. e3 {[%emt 0:00:04]} b6 {[%emt 0:00:29]} 7. Bd3 {[%emt 0:00:07]} Bb7 {[%emt 0:00:06] 7...Ba6 is the recent fashion.} 8. cxd5 {[%emt 0:00:05]} exd5 {[%emt 0:03:58]} 9. O-O {[%emt 0:00:31]} Re8 {[%emt 0:03:54] D37: Queen's Gambit Declined: 5 Bf4.} 10. Ne5 {[%emt 0:02:12]} c6 {[%emt 0:04:12]} 11. Qf3 {[%emt 0:04:34]} Nbd7 {[%emt 0:08:16]} 12. Rad1 $146 {[%emt 0:05:21]} ({Predecessor:} 12. Qh3 h6 13. Qf5 a6 14. Ng4 Bf8 15. Be5 g6 16. Nxf6+ Nxf6 17. Qxf6 Qxf6 18. Bxf6 {1-0 Da Rocha,S-Borin,C Brasilia open 1987 (3)}) 12... Nf8 {[%emt 0:05:51]} 13. g4 {[%emt 0:25:40]} Bd6 {[%emt 0:08:06]} 14. Qg3 {[%emt 0:08:19]} Bxe5 {[%emt 0:06:21]} 15. Bxe5 {[%emt 0:00:26]} Ng6 {[%emt 0:01:23]} 16. Bc7 {[%emt 0:01:11]} Qe7 {[%emt 0:00:18]} 17. Bd6 {[%emt 0:00:18]} Qd8 {[%emt 0:00:10]} 18. Bc7 {[%emt 0:04:55]} Qe7 {[%emt 0:00:07]} 19. Bd6 {[%emt 0:00:11]} Qd8 {[%emt 0:00:12]} 20. b4 {[%emt 0:05:46]} Nxg4 {[%emt 0:02:51]} 21. Kh1 {[%emt 0:14:33]} Nf6 $17 {[%emt 0:05:13]} 22. Rg1 {[%emt 0:06:26]} Nh5 {[%emt 0:03:15]} 23. Qg4 {[%emt 0:02:29]} Nf6 {[%emt 0:02:40]} 24. Qg3 {[%emt 0:00:07]} Nh5 {[%emt 0:00:07]} 25. Qg4 {[%emt 0:05:37]} Qxd6 {[%emt 0:03:52]} 26. Qxh5 {[%emt 0:00:08]} Qf6 {[%emt 0:01:02]} 27. Rg3 {[%emt 0:04:38]} Nf8 {[%emt 0:02:38]} 28. Rf3 {[%emt 0:06:01]} g6 {[%emt 0:00:57]} 29. Rxf6 {[%emt 0:03:12]} gxh5 {[%emt 0:00:02]} 30. Rg1+ {[%emt 0:00:01]} Ng6 {[%emt 0:00:03]} 31. Rf5 {[%emt 0:06:00]} h4 {[%emt 0:01:56]} 32. Rh5 {[%emt 0:00:25]} a5 {[%emt 0:01:59]} 33. b5 {[%emt 0:00:29]} cxb5 {[%emt 0:02:12]} 34. Nxb5 {[%emt 0:00:40]} Re7 {[%emt 0:01:14]} 35. a4 {[%emt 0:01:51]} Bc6 {[%emt 0:01:56]} 36. Rc1 {[%emt 0:01:54]} Bxb5 {[%emt 0:03:05]} 37. Bxb5 {[%emt 0:00:08]} Rd8 {[%emt 0:00:06]} 38. Be2 {[%emt 0:02:09]} Nf4 {[%emt 0:02:27]} 39. Rg5+ {[%emt 0:00:01]} Kf8 {[%emt 0:00:38]} 40. Rcg1 {[%emt 0:00:47]} Ng6 {[%emt 0:00:22]} 41. Bf3 {[%emt 0:41:15]} Red7 {[%emt 0:40:19]} 42. Rb1 {[%emt 0:00:28]} Rd6 {[%emt 0:00:27]} 43. Rb5 {[%emt 0:00:00]} Ne7 {[%emt 0:00:00]} 44. Rg1 {[%emt 0:00:00]} Rf6 {[%emt 0:00:00]} 45. Bg4 {[%emt 0:00:00]} Rdd6 {[%emt 0:00:00]} 46. f3 {[%emt 0:00:00]} Rc6 {[%emt 0:04:23]} 47. Rgb1 {[%emt 0:00:00]} Rg6 {[%emt 0:00:00]} 48. Bh3 {[%emt 0:00:00]} f5 {[%emt 0:00:00]} 49. Bf1 {[%emt 0:00:00]} Rge6 {[%emt 0:00:00]} 50. R5b3 {[%emt 0:00:00]} Kf7 {[%emt 0:00:00]} 51. Bd3 {[%emt 0:00:00]} Rxe3 {[%emt 0:00:00]} 52. Bb5 {[%emt 0:00:00]} Rxb3 {[%emt 0:00:00]} 53. Rxb3 {[%emt 0:00:00]} Re6 {[%emt 0:00:00]} 54. Bd7 {[%emt 0:00:00]} Rd6 {[%emt 0:00:00]} 55. Bb5 {[%emt 0:00:00]} f4 {[%emt 0:00:00]} 56. Bd3 {[%emt 0:00:00]} h6 {[%emt 0:00:00]} 57. Kg2 {[%emt 0:00:00]} Re6 {[%emt 0:00:00]} 58. Bh7 {[%emt 0:01:55]} Kg7 {[%emt 0:00:00]} 59. Bb1 {[%emt 0:00:00]} Kf6 {[%emt 0:00:00]} 60. Kh3 {[%emt 0:00:00]} Nc6 {[%emt 0:00:00]} 61. Rxb6 {[%emt 0:00:00]} Nxd4 {[%emt 0:00:00]} 62. Rb8 {[%emt 0:00:00]} Nxf3 {[%emt 0:00:00]} 63. Kg4 {[%emt 0:00:00]} Nd2 {[%emt 0:00:00]} 64. Kxf4 {[%emt 0:00:00]} Nxb1 {[%emt 0:00:00]} 65. Rxb1 {[%emt 0:00:00]} Re4+ {[%emt 0:00:00]} 66. Kf3 {[%emt 0:00:13]} Rxa4 {[%emt 0:00:00]} 0-1

[Event "Fagernes Chess GM-Swiss 2024"]
[Site "Fagernes"]
[Date "2024.03.29"]
[Round "7.1"]
[White "Kulaots, Kaido"]
[Black "Jumabayev, Rinat"]
[Result "0-1"]
[ECO "C67"]
[WhiteElo "2534"]
[BlackElo "2598"]
[Annotator "TA"]
[PlyCount "56"]
[EventDate "2024.03.25"]
[EventType "swiss"]
[EventCountry "NOR"]
[SourceTitle "playchess.com"]
[Source "ChessBase"]
[SourceQuality "1"]
[TimeControl "40/6000+30:2400+30"]

{[%evp 9,56,13,15,0,6,-3,20,14,19,14,25,29,27,18,14,0,0,0,0,0,3,0,0,0,25,22,18,15,6,-25,-33,-831,-783,-1092,-1091,-1053,-1014,-1402,0,0,0,-1281,-1231,-29990,-29991,-29991,-29992,-29992,-29993]} 1. e4 {[%emt 0:00:06]} e5 {[%emt 0:01:09]} 2. Nf3 {[%emt 0:00:07]} Nc6 {[%emt 0:00:29]} 3. Bb5 {[%emt 0:00:06]} Nf6 {[%emt 0:00:26]} 4. O-O {[%emt 0:03:09][%cal Bh1f1,Bf1e1,Be1e4][%mdl 32]} Nxe4 {[%emt 0:00:09]} 5. Re1 {[%emt 0:00:12]} Nd6 {[%emt 0:00:05]} 6. a4 {[%emt 0:00:15]} Be7 {[%emt 0:00:45]} 7. Nc3 {[%emt 0:00:31]} e4 {[%emt 0:20:08]} 8. Nxe4 {[%emt 0:00:47] Die Stellung ist ausgeglichen.} Nxe4 {[%emt 0:00:04]} 9. Rxe4 {[%emt 0:00:08]} d5 {[%emt 0:06:39]} 10. Re1 {[%emt 0:00:51]} O-O {[%emt 0:00:17]} 11. d4 {[%emt 0:02:43]} Bg4 {[%emt 0:03:07]} 12. c3 {[%emt 0:03:32]} Bd6 {[%emt 0:02:41]} 13. h3 {[%emt 0:10:43]} Bh5 {[%emt 0:01:22]} 14. g3 {[%emt 0:21:34]} Re8 {[%emt 0:08:29]} 15. Rxe8+ {[%emt 0:02:49]} Qxe8 {[%emt 0:00:56]} 16. Bd3 {[%emt 0:02:24]} Bg6 {[%emt 0:19:34]} 17. Bxg6 {[%emt 0:01:13]} hxg6 {[%emt 0:00:02]} 18. Qb3 {[%emt 0:18:11]} Qe4 {[%emt 0:04:09]} 19. Nd2 {[%emt 0:12:32]} Qe1+ {[%emt 0:18:43]} 20. Kg2 $2 {[%emt 0:01:39][%mdl 8192] [#]} (20. Nf1 $15) 20... Bxg3 $1 $19 {[%emt 0:02:36][%mdl 512]} 21. Kxg3 {[%emt 0:01:27]} (21. fxg3 Re8) 21... Qg1+ {[%emt 0:00:13]} 22. Kf3 {[%emt 0:02:53] [#]} Re8 $1 {[%emt 0:00:24]} 23. Qb5 {[%emt 0:00:58]} Qh1+ {[%emt 0:01:51]} 24. Kg3 {[%emt 0:00:25][%cal Ob5f1] Droht Qf1! und aus.} Qg1+ {[%emt 0:00:14]} 25. Kf3 {[%emt 0:00:18] [#]} Re1 {[%emt 0:01:18] Es drohte Qf1. ( -> ...Qh1+)} 26. Qxb7 {[%emt 0:08:36]} Qh1+ {[%emt 0:03:06] Schwarz setzt Matt.} (26... Rxc1 $2 {geht unter.} 27. Rxc1 Qxc1 28. Ke2 $18 (28. Qxc6 Qxd2 29. Qxd5 Qxb2 $14)) 27. Kg3 {[%emt 0:02:01]} Rg1+ {[%emt 0:03:35]} (27... Rxc1 $2 {zu gefräßig.} 28. Nf3 f6 (28... Rxa1 29. Qa8+) 29. Rxc1 Qxc1 30. Qxc6 $18) 28. Kf4 {[%emt 0:00:11] [#]} Qxh3 $1 {[%emt 0:00:22] Gewichteter Fehlerwert: Weiß=1.15/Schwarz=0.38.  Verlustzug:     	Weiß=1     	---        Ungenau:       	Weiß=3     	---        OK:         	Weiß=6     	Schwarz=7     Bester:       	Weiß=1     	Schwarz=1     Brilliant:      	---       	Schwarz=1} 0-1

[Event "Fagernes Chess GM-Swiss 2024"]
[Site "Fagernes"]
[Date "2024.03.29"]
[Round "7.2"]
[White "Ganguly, Surya Shekhar"]
[Black "Urkedal, Frode Olav Olsen"]
[Result "1/2-1/2"]
[ECO "E60"]
[WhiteElo "2574"]
[BlackElo "2536"]
[Annotator "TA"]
[PlyCount "55"]
[EventDate "2024.03.25"]
[EventType "swiss"]
[EventCountry "NOR"]
[SourceTitle "playchess.com"]
[Source "ChessBase"]
[SourceQuality "1"]
[TimeControl "40/6000+30:2400+30"]

{[%evp 16,55,0,12,17,12,25,0,30,0,0,10,21,10,11,-12,0,0,0,0,0,0,0,0,0,0,0,0,0,0,0,-16,-9,-13,-13,-10,-18,-6,-19,-8,-8,-8]} 1. Nf3 {[%emt 0:00:19]} d5 {[%emt 0:02:33]} 2. e3 {[%emt 0:00:08]} c5 {[%emt 0:04:27]} 3. b3 {[%emt 0:00:23]} Nf6 {[%emt 0:01:31]} 4. Bb2 {[%emt 0:00:05]} g6 {[%emt 0:03:58]} 5. c4 {[%emt 0:01:35]} dxc4 {[%emt 0:05:33]} 6. Bxc4 {[%emt 0:00:46]} Bg7 {[%emt 0:00:07]} 7. O-O {[%emt 0:01:27]} O-O {[%emt 0:00:23]} 8. d4 {[%emt 0:04:28]} cxd4 {[%emt 0:02:18]} 9. Nxd4 {[%emt 0:00:38]} Bd7 {[%emt 0:01:26]} 10. Nd2 {[%emt 0:01:26]} Nc6 {[%emt 0:00:13]} 11. N2f3 {[%emt 0:00:11]} Qa5 {[%emt 0:03:32]} 12. Qe2 {[%emt 0:03:17]} Nxd4 {[%emt 0:14:48] The position is equal.} 13. Bxd4 {[%emt 0:00:30]} Bc6 {[%emt 0:01:10]} 14. Rfd1 {[%emt 0:04:53]} Rac8 {[%emt 0:10:07]} 15. a3 {[%emt 0:10:42]} a6 {[%emt 0:04:22]} 16. b4 {[%emt 0:03:48]} Qh5 {[%emt 0:09:32]} 17. Ne5 {[%emt 0:00:54]} Qxe2 {[%emt 0:00:23]} 18. Bxe2 {[%emt 0:00:05]} Ba4 {[%emt 0:00:54]} 19. Rdc1 {[%emt 0:00:24]} Ne4 {[%emt 0:08:24][%cal Bf6e4,Be4d6,Bd6b5][%mdl 32]} 20. Bf3 {[%emt 0:27:47]} Nd6 {[%emt 0:00:57]} 21. Rc5 {[%emt 0:04:13]} b6 {[%emt 0:04:00]} 22. Rcc1 {[%emt 0:00:06]} Nb5 {[%emt 0:11:27]} 23. Nc6 {[%emt 0:04:22][%cal Be5c6,Bc6e7,Be7c8,Bc8b6][%mdl 32]} Nxd4 {[%emt 0:01:57]} 24. Nxe7+ {[%emt 0:00:34]} Kh8 {[%emt 0:00:03] [#] White must now prevent ...Nxf3+.} 25. Nxc8 {[%emt 0:00:19]} Nxf3+ {[%emt 0:00:09]} 26. gxf3 {[%emt 0:00:05]} Bxa1 {[%emt 0:00:05] A strong pair of Bishops.} 27. Nxb6 $1 {[%emt 0:00:10]} Bb2 $1 {[%emt 0:00:44][%csl LRa3,LRc1]} 28. Rb1 $1 {[%emt 0:00:07] A rather calm draw.   Weighted Error Value: White=0.07 (flawless) /Black=0.03 (flawless) .  Inaccurate:     	White=1     	Black=1      OK:         	White=6     	Black=11     Best:        	White=1     	Black=1      Strong:       	White=2     	---} 1/2-1/2

[Event "Fagernes Chess GM-Swiss 2024"]
[Site "Fagernes"]
[Date "2024.03.29"]
[Round "7.3"]
[White "Gorshtein, Ido"]
[Black "Sasikiran, Krishnan"]
[Result "1/2-1/2"]
[ECO "E12"]
[WhiteElo "2539"]
[BlackElo "2578"]
[Annotator "TA"]
[PlyCount "40"]
[EventDate "2024.03.25"]
[EventType "swiss"]
[EventCountry "NOR"]
[SourceTitle "playchess.com"]
[Source "ChessBase"]
[SourceQuality "1"]
[TimeControl "40/6000+30:2400+30"]

{[%evp 10,40,6,9,4,7,7,1,25,16,22,6,10,0,10,0,0,0,0,-54,0,0,0,0,0,-14,0,0,0,0,0,0,-4]} 1. d4 {[%emt 0:00:04]} Nf6 {[%emt 0:00:23]} 2. c4 {[%emt 0:00:05]} e6 {[%emt 0:00:09]} 3. Nf3 {[%emt 0:00:07]} b6 {[%emt 0:00:14]} 4. a3 {[%emt 0:00:06]} Bb7 {[%emt 0:00:32]} 5. Nc3 {[%emt 0:00:06]} d5 {[%emt 0:00:30]} 6. Bf4 {[%emt 0:02:16]} dxc4 {[%emt 0:08:03]} 7. e3 {[%emt 0:00:18]} Bd6 {[%emt 0:01:25]} 8. Bxd6 {[%emt 0:03:38]} Qxd6 {[%emt 0:11:19]} 9. Bxc4 {[%emt 0:00:09]} O-O {[%emt 0:00:45]} 10. Rc1 {[%emt 0:04:38]} c5 {[%emt 0:06:55]} 11. O-O {[%emt 0:08:03]} Nbd7 {[%emt 0:04:54]} 12. Nb5 {[%emt 0:14:42]} Qb8 {[%emt 0:08:21]} 13. dxc5 {[%emt 0:04:48]} bxc5 {[%emt 0:00:55]} 14. Be2 {[%emt 0:23:19]} (14. Rc2 $11) 14... Bxf3 {[%emt 0:13:07]} (14... Bc6 $1 $15 15. Qd3 a6) 15. gxf3 $11 {[%emt 0:00:08] The position is equal.} a6 {[%emt 0:01:49]} 16. Nd6 {[%emt 0:01:38]} Qxb2 {[%emt 0:02:13][%cal Of6d5]} 17. Rb1 {[%emt 0:01:13]} Qc3 {[%emt 0:03:54][%cal Of8b8]} (17... Qxa3 $2 {perishes.} 18. Nc4 Qc3 19. Rb3 $18) 18. Rb3 {[%emt 0:13:42]} Qa5 {[%emt 0:04:18]} 19. Nc4 {[%emt 0:00:08]} Qa4 {[%emt 0:11:41]} 20. Rb2 {[%emt 0:01:19]} Qc6 {[%emt 0:03:06] An uneventful encounter.   Weighted Error Value: White=0.09 (flawless) /Black=0.08 (flawless) .  Mistake:       	White=1     	Black=1      OK:         	White=6     	Black=7} 1/2-1/2

[Event "Fagernes Chess GM-Swiss 2024"]
[Site "Fagernes"]
[Date "2024.03.29"]
[Round "7.4"]
[White "Ghasi, Ameet K"]
[Black "Raja Rithvik R"]
[Result "1/2-1/2"]
[ECO "E04"]
[WhiteElo "2485"]
[BlackElo "2532"]
[Annotator "TA"]
[PlyCount "88"]
[EventDate "2024.03.25"]
[EventType "swiss"]
[EventCountry "NOR"]
[SourceTitle "playchess.com"]
[Source "ChessBase"]
[SourceQuality "1"]
[TimeControl "40/6000+30:2400+30"]

{[%evp 27,88,23,13,11,10,12,18,19,23,26,17,13,11,27,22,31,21,18,29,24,13,1,18,22,13,11,39,40,41,46,84,59,211,211,211,211,90,90,90,145,249,197,208,208,208,227,258,100,100,80,80,72,72,72,80,81,94,101,146,0,0,0,192]} 1. Nf3 {[%emt 0:02:08]} d5 {[%emt 0:00:24]} 2. g3 {[%emt 0:00:09]} c5 {[%emt 0:00:11]} 3. Bg2 {[%emt 0:00:32]} Nc6 {[%emt 0:00:05]} 4. d4 {[%emt 0:00:25]} Nf6 {[%emt 0:00:06]} 5. O-O {[%emt 0:00:19]} e6 {[%emt 0:00:06]} 6. c4 {[%emt 0:01:23]} dxc4 {[%emt 0:00:07]} 7. dxc5 {[%emt 0:01:14]} Qd5 {[%emt 0:00:09]} 8. Qd3 Qxd3 {[%emt 0:00:29]} 9. Re1 {[%emt 0:00:03]} Qd1 10. Rxd1 {[%emt 0:01:00]} Bxc5 {[%emt 0:00:35]} 11. Nbd2 {[%emt 0:00:16]} c3 {[%emt 0:00:07]} 12. bxc3 {[%emt 0:00:05][%cal Bb2c3,Bc3c4][%mdl 32]} O-O {[%emt 0:00:06]} 13. Nb3 {[%emt 0:01:09]} Be7 {[%emt 0:00:05]} 14. c4 {[%emt 0:00:41]} Bd7 {[%emt 0:00:08]} 15. Bb2 {[%emt 0:00:26]} Rfc8 {[%emt 0:00:05]} 16. c5 {[%emt 0:01:58]} Be8 {[%emt 0:00:03]} 17. Nfd2 {[%emt 0:03:15]} b6 {[%emt 0:17:48]} 18. cxb6 {[%emt 0:22:30]} axb6 {[%emt 0:00:40]} 19. Nc4 {[%emt 0:01:23]} Rab8 {[%emt 0:00:07]} 20. Nd6 {[%emt 0:05:58]} Bxd6 {[%emt 0:00:08]} 21. Rxd6 {[%emt 0:00:05]} Na5 {[%emt 0:02:35]} 22. Nxa5 {[%emt 0:11:55]} bxa5 {[%emt 0:00:04]} 23. Bd4 {[%emt 0:01:18]} Rc2 {[%emt 0:03:01]} 24. Bf3 {[%emt 0:04:55]} Nd5 {[%emt 0:04:53]} 25. Bxd5 {[%emt 0:04:52]} exd5 {[%emt 0:00:21]} 26. Rxd5 {[%emt 0:01:53]} f6 {[%emt 0:08:14]} 27. Rxa5 {[%emt 0:02:17]} Rxe2 {[%emt 0:00:06]} 28. a4 {[%emt 0:01:23]} Bc6 {[%emt 0:10:29][%cal Oe2a2]} 29. Ra6 {[%emt 0:14:13]} Ra2 $2 {[%emt 0:02:05] [#]} 30. Rxc6 $18 {[%emt 0:00:00]} (30. Rxa2 $2 Rb1#) 30... Rxa1+ {[%emt 0:00:02]} 31. Bxa1 {[%emt 0:00:00][%mdl 4096] Endspiel. KRB-KR} Rb1+ {[%emt 0:00:02]} 32. Kg2 {[%emt 0:00:00]} Rxa1 $16 {[%emt 0:00:02] KR-KR} 33. Ra6 {[%emt 0:08:54]} Ra3 {[%emt 0:01:55]} (33... h5 $16 {ist eine bessere Verteidigung.} 34. a5 Kf7) 34. Ra7 {[%emt 0:04:08]} h5 {[%emt 0:00:23]} 35. a5 {[%emt 0:03:25][%cal Ba4a5,Ba5a6][%mdl 32]} Kh7 {[%emt 0:00:31]} 36. a6 {[%emt 0:03:57]} Kg6 {[%emt 0:00:26]} 37. h4 $2 {[%emt 0:04:29]} (37. Ra8 $18) 37... Kh7 {[%emt 0:01:42]} 38. Kf1 {[%emt 0:00:59] Weiß steht aktiver.} Ra2 {[%emt 0:00:11]} 39. Ra8 {[%emt 0:00:38]} Kg6 {[%emt 0:00:18]} 40. f3 {[%emt 0:00:41] Und jetzt g4 wäre schön.} Kf5 {[%emt 0:07:32]} 41. Ke1 {[%emt 0:41:12]} Ra3 {[%emt 0:43:08]} 42. Ke2 {[%emt 0:00:23]} Ra2+ {[%emt 0:00:03] [#]} 43. Ke3 {[%emt 0:00:38]} (43. Kd1 $1 $16) 43... Ra3+ $11 {[%emt 0:00:27]} 44. Ke2 $2 {[%emt 0:00:43]} (44. Kf2 $11) 44... Ra2+ $1 {[%emt 0:00:05] Gewichteter Fehlerwert: Weiß=0.15 (sehr präzise) /Schwarz=0.16 (sehr präzise) .  Fehler:       	Weiß=3     	Schwarz=2     Ungenau:       	---       	Schwarz=2     OK:         	Weiß=13    	Schwarz=12    Bester:       	Weiß=2     	Schwarz=3     Stark:        	---       	Schwarz=1} 1/2-1/2